Cogmind - Beta 13 @@@ ROGUE MODE // 2024.05.25 @ 12:41:50 Player: Barbarossa Result: Destroyed by B-75 Beast with Magnetic Acceleration Cannon Performance ------------- Evolutions (1) 500 Regions Visited (5) 1000 Robots Destroyed (38) 190 Value Destroyed (867) 867 Prototype IDs (0) 0 Alien Tech Used (0) 0 Bonus (692) 692 TOTAL SCORE: 3249 Bonus ------- High Alert Combat Kills 43 Follower Combat Kills 49 Met Imprinter 300 Was Imprinted 300 Cogmind --------- Core Integrity 0/400 Matter 260/300 Energy 43/100 System Corruption 0% Temperature Cool (12) Movement Core (100) Ox1 Location -6/Proximity Caves Parts ------- > --- POWER (1) -------- (None) > --- PROPULSION (4) --- (None) > --- UTILITY (2) ------ Improved Heat Sink Enhanced Optical Array > --- WEAPON (2) ------- Datajack CR-A16's Pointy Stick > --- INVENTORY (5) ---- High-capacity Battery (250) High-capacity Matter Pod (200) Sensor Array Improved System Restoration Module Enhanced Flamer Peak State ------------ > --- POWER ------------ Improved Ion Engine > --- PROPULSION ------- Light Treads Light Treads Wheel Wheel > --- UTILITY ---------- Medium Storage Unit Signal Interpreter > --- WEAPON ----------- Beam Rifle Plasma Cannon > --- INVENTORY -------- Wheel Improved Heat Sink High-capacity Battery High-capacity Matter Pod Visual Processing Unit Sensor Array Hacking Suite Datajack Enhanced Flamer CR-A16's Pointy Stick [Rating: 16] Favorites ----------- Power Improved Ion Engine Engine Improved Ion Engine Propulsion Wheel Treads Light Treads Leg Aluminum Leg Wheel Wheel Utility Signal Interpreter Device Improved Heat Sink Storage Small Storage Unit Processor Signal Interpreter Weapon Beam Rifle Energy Gun Beam Rifle Energy Cannon Plasma Cannon Ballistic Gun Assault Rifle Piercing Weapon CR-A16's Pointy Stick Special Melee Weapon Datajack Build | -11 -10 -9 -9 -7 -6 ------- Run | Yrd Mat Mat Min Zio Pro Slots Evolved 2 | . . 2 . . . Power . | . . . . . . Propulsion 2 | . . 2 . . . Utility . | . . . . . . Weapon . | . . . . . . Parts Attached 27 | . 9 11 . 3 4 Power 3 | . 2 1 . . . Engine 3 | . 2 1 . . . Core . | . . . . . . Reactor . | . . . . . . Propulsion 13 | . 5 7 . 1 . Treads 4 | . . 4 . . . Leg . | . . . . . . Wheel 9 | . 5 3 . 1 . Hover . | . . . . . . Flight . | . . . . . . Utility 4 | . 1 . . 1 2 Device 1 | . . . . . 1 Storage 1 | . . . . 1 . Processor 2 | . 1 . . . 1 Hackware . | . . . . . . Protection . | . . . . . . Artifact . | . . . . . . Weapon 7 | . 1 3 . 1 2 Energy Gun 2 | . . 2 . . . Energy Cannon 1 | . . . . 1 . Ballistic Gun 2 | . 1 1 . . . Ballistic Cannon . | . . . . . . Launcher . | . . . . . . Special Weapon . | . . . . . . Impact Weapon . | . . . . . . Slashing Weapon . | . . . . . . Piercing Weapon 1 | . . . . . 1 Special Melee Weapon 1 | . . . . . 1 Unidentified Prototypes . | . . . . . . Parts Lost 14 | . 2 4 . . 8 Power 1 | . . . . . 1 Propulsion 7 | . 1 2 . . 4 Utility 1 | . . . . . 1 Weapon 5 | . 1 2 . . 2 Highest Loss Streak 6 | . 2 2 . . 6 To Critical Strikes . | . . . . . . Average Slot Usage (%) 92 | . 88 96 88 98 80 Engine 10 | . 14 11 11 11 4 Treads 16 | . . 21 22 22 13 Wheel 22 | . 26 19 22 22 20 Storage 11 | . 14 11 11 11 10 Processor 9 | . 6 11 11 11 10 Energy Gun 7 | . . 6 11 11 10 Energy Cannon 5 | . . . . 9 9 Ballistic Gun 8 | . 27 14 . . . Naked Turns . | . . . . . . Heaviest Build 27 | 13 13 15 15 27 27 Greatest Support 20 | 20 20 20 20 20 20 Greatest Overweight (x) 4 | . 1 4 . 1 1 Average Overweight (x) . | . . . . . . Largest Inventory Capacity 10 | . 8 8 8 10 10 Average Capacity 8 | . 8 8 8 9 9 Most Carried 10 | . 8 8 8 10 10 Average Carried 8 | . 6 7 7 9 9 Final Capacity 10 | 8 8 8 8 10 5 Final Carried 10 | 6 8 7 8 10 5 Class Distribution -------------------- 71% | Scavenger-Mutant 28% | Mutant Dominant Class ---------------- Mutant | -10/Materials Scavenger-Mutant | -9/Materials Scavenger-Mutant | -9/Mines Scavenger-Mutant | -7/Zion Scavenger-Mutant | -6/Proximity Caves Resources | -11 -10 -9 -9 -7 -6 ----------- Run | Yrd Mat Mat Min Zio Pro Matter Collected 953 | 179 362 306 64 32 10 Remotely . | . . . . . . Salvage Created 1205 | . 547 568 37 . 53 Parts 68 | . 20 42 2 . 4 Haulers Intercepted . | . . . . . . Recyclers Shooed . | . . . . . . Parts Field Recycled . | . . . . . . Retrieved Matter . | . . . . . . Parts Self-Destructed 6 | . . . . . 6 Prevented . | . . . . . . Kills | -11 -10 -9 -9 -7 -6 ------- Run | Yrd Mat Mat Min Zio Pro Combat Hostiles Destroyed 25 | . 9 15 . . 1 Guns 21 | . 9 12 . . . Cannons 1 | . . . . . 1 AOE 3 | . . 3 . . . Classes Destroyed 9 | . 6 2 . . 1 Worker 6 | . 3 1 2 . . Builder 2 | . . 2 . . . Recycler 2 | . 2 . . . . Operator 2 | . 1 1 . . . Watcher 1 | . 1 . . . . Swarmer 7 | . 3 4 . . . Grunt 13 | . 6 7 . . . Sentry 4 | . . 4 . . . Hunter 1 | . . . . . 1 Best Kill Streak 7 | . 5 7 2 . 1 Combat Bots Only 6 | . 3 6 . . 1 Max Kills in Single Turn 4 | . 1 4 1 . 1 Gunslinging . | . . . . . . Exploded 3 | . . 3 . . . Melee . | . . . . . . Uniques/NPCs Destroyed . | . . . . . . Combat | -11 -10 -9 -9 -7 -6 -------- Run | Yrd Mat Mat Min Zio Pro Hostile Shots Fired 200 | . 55 102 1 . 42 Missed 59 | . 16 31 1 . 11 Damage Taken 1971 | . 396 951 . . 624 Core 503 | . 94 162 . . 247 Absorbed by Shields . | . . . . . . Regen/Repaired (Parts) 57 | . . 57 . . . Core Remaining (%) 81 | 100 62 . . . . Volleys Fired 119 | . 50 60 3 . 6 Largest 2 | . 2 2 1 . 2 Hottest 136 | . 40 96 56 . 136 Shots Fired 225 | . 94 116 3 . 12 Gun 219 | . 94 116 3 . 6 Cannon 6 | . . . . . 6 Launcher . | . . . . . . Special . | . . . . . . Kinetic 159 | . 94 65 . . . Thermal 66 | . . 51 3 . 12 Explosive . | . . . . . . Electromagnetic . | . . . . . . Robot Hit Streak 7 | . 7 7 1 . 2 Robot Miss Streak 5 | . 5 3 1 . 3 Penetration Max . | . . . . . . Secondary Targets 3 | . 3 . . . . Max Gunslinging Chain 1 | . 1 . . . . Shots Hit Robots 137 | . 57 74 2 . 4 Core Hits 65 | . 27 32 2 . 4 Critical Kills . | . . . . . . Critical Parts Destroyed . | . . . . . . Critical Strikes 1 | . . 1 . . . Burn 1 | . . 1 . . . Melee Attacks . | . . . . . . Impact . | . . . . . . Slashing . | . . . . . . Piercing . | . . . . . . Sneak Attacks . | . . . . . . Combat Hostiles . | . . . . . . Follow-up Attacks . | . . . . . . Damage Inflicted 1968 | . 585 1272 28 . 83 Guns 1562 | . 585 920 28 . 29 Cannons 54 | . . . . . 54 Explosions 352 | . . 352 . . . Melee . | . . . . . . Ramming . | . . . . . . Kinetic 1069 | . 585 484 . . . Thermal 899 | . . 788 28 . 83 Explosive . | . . . . . . Electromagnetic . | . . . . . . Impact . | . . . . . . Slashing . | . . . . . . Piercing . | . . . . . . Highest Corruption 1 | . . 1 1 1 . Average Corruption 1 | . . 1 1 1 . Corruption Purged . | . . . . . . Corruption Blocked . | . . . . . . Effects 1 | . . 1 . . . Energy Discharges 1 | . . 1 . . . Overload Shots . | . . . . . . Overflow Damage 156 | . . 156 . . . Projectiles . | . . . . . . Explosions 156 | . . 156 . . . Melee . | . . . . . . Knockbacks . | . . . . . . Impact . | . . . . . . Kinetic . | . . . . . . Secondary . | . . . . . . Self-Inflicted Damage 97 | . . 97 . . . Shots 1 | . . 1 . . . Rammed . | . . . . . . Targets Rammed . | . . . . . . Kicked . | . . . . . . Crushed . | . . . . . . Highest Temperature 332 | . 12 246 24 . 332 Average Temperature 49 | . 6 29 11 . 170 Received Heat Transfer 573 | . 153 348 . . 72 Effects 3 | . . 2 . . 1 Energy Bleed 1 | . . . . . 1 Interference 2 | . . 2 . . . Siege Activations . | . . . . . . Robots Corrupted . | . . . . . . Combat Hostiles . | . . . . . . Parts Fried . | . . . . . . Impact Corruptions . | . . . . . . Robots Melted . | . . . . . . Combat Hostiles . | . . . . . . Parts Melted 1 | . . 1 . . . Heat Transferred 1544 | . . 1296 74 . 174 Parts Sabotaged . | . . . . . . Parts Stolen . | . . . . . . Parts Stripped . | . . . . . . Power Chain Reactions . | . . . . . . Alert | -11 -10 -9 -9 -7 -6 ------- Run | Yrd Mat Mat Min Zio Pro Peak Influence 555 | . 277 555 185 . . Initial 145 | . . 32 145 . . Average 218 | . 139 308 156 . . Maximum Alert Level 2 | . 1 2 . . . Low Security (%) 56 | . 75 29 100 . . Level 1 25 | . 25 31 . . . Level 2 17 | . . 39 . . . Level 3 . | . . . . . . Level 4 . | . . . . . . Level 5 . | . . . . . . High Security . | . . . . . . Max Security . | . . . . . . Squads Dispatched 3 | . 1 2 . . . Investigation 1 | . . 1 . . . Extermination . | . . . . . . Reinforcement 2 | . 1 1 . . . Assault . | . . . . . . Garrison . | . . . . . . Intercept . | . . . . . . Searches Triggered . | . . . . . . Construction Impeded 1 | . . 1 . . . Haulers Reinforced . | . . . . . . Active Scanning Responses . | . . . . . . Cargo Convoy Interrupts . | . . . . . . Stealth | -11 -10 -9 -9 -7 -6 --------- Run | Yrd Mat Mat Min Zio Pro Distress Signals 2 | . 1 1 . . . Communications Jammed . | . . . . . . Distress Signals . | . . . . . . Times Spotted 54 | . 14 26 3 . 11 Peak Tracking Total 9 | . 4 6 3 . 9 Tactical Retreats 6 | . . 1 2 . 3 Traps | -11 -10 -9 -9 -7 -6 ------- Run | Yrd Mat Mat Min Zio Pro Traps Triggered 1 | . . 1 . . . Indirectly . | . . . . . . Trap Hack Attempts . | . . . . . . Triggered . | . . . . . . Disarmed . | . . . . . . Reprogrammed . | . . . . . . Reused . | . . . . . . Traps Extracted . | . . . . . . Installed . | . . . . . . Triggered . | . . . . . . Machines | -11 -10 -9 -9 -7 -6 ---------- Run | Yrd Mat Mat Min Zio Pro Machines Disabled 3 | . . 2 . . 1 Max in Single Turn 2 | . . 2 . . 1 Machines Repaired . | . . . . . . Machines Dismantled . | . . . . . . Machines Sabotaged . | . . . . . . Overloaded Fab Kills . | . . . . . . Hacking | -11 -10 -9 -9 -7 -6 --------- Run | Yrd Mat Mat Min Zio Pro Machines Accessed 6 | . 3 3 . . . Terminals 4 | . 2 2 . . . Fabricators . | . . . . . . Repair Stations 1 | . . 1 . . . Recycling Units 1 | . 1 . . . . Scanalyzers . | . . . . . . Garrison Access . | . . . . . . Total Hacks 17 | . 7 10 . . . Successful 11 | . 4 7 . . . Failed 6 | . 3 3 . . . Catastrophic . | . . . . . . Database Lockouts . | . . . . . . Manual 16 | . 8 5 . 3 . Terminals 12 | . 6 6 . . . Fabricators . | . . . . . . Repair Stations 4 | . . 4 . . . Recycling Units 1 | . 1 . . . . Scanalyzers . | . . . . . . Garrison Access . | . . . . . . Terminal Hacks 2 | . . 2 . . . Emergency Access Points 1 | . . 1 . . . Locate Traps 1 | . . 1 . . . Fabricator Hacks . | . . . . . . Repair Station Hacks 3 | . . 3 . . . Scan Component 2 | . . 2 . . . Repair 1 | . . 1 . . . Recycling Unit Hacks 1 | . 1 . . . . Report Inventory 1 | . 1 . . . . Scanalyzer . | . . . . . . Garrison Access Hacks . | . . . . . . Unauthorized Hacks 5 | . 3 2 . . . Terminals 5 | . 3 2 . . . Botnet 4 | . 2 2 . . . Operators 1 | . 1 . . . . Fabricators . | . . . . . . Repair Stations . | . . . . . . Recycling Units . | . . . . . . Scanalyzers . | . . . . . . Garrison Access . | . . . . . . Data Cores Recovered 1 | . . 1 . . . Used 1 | . . 1 . . . Hacking Detections 7 | . 4 3 . . . Full Trace Events 1 | . . 1 . . . Feedback Events 1 | . . 1 . . . Corruption 1 | . . 1 . . . Feedback Blocked . | . . . . . . Robot Schematics Acquired . | . . . . . . Robots Built . | . . . . . . Authchips . | . . . . . . Time . | . . . . . . Total Robot Build Rating . | . . . . . . Part Schematics Acquired . | . . . . . . Parts Built . | . . . . . . Authchips . | . . . . . . Time . | . . . . . . Total Part Build Rating . | . . . . . . Parts Repaired 1 | . . 1 . . . Time 36 | . . 36 . . . Parts Recycled . | . . . . . . Recycled Matter . | . . . . . . Retrieved Matter . | . . . . . . Retrieved Components . | . . . . . . Parts Scanalyzed . | . . . . . . Part Schematics Acquired . | . . . . . . Parts Damaged . | . . . . . . Bothacking | -11 -10 -9 -9 -7 -6 ------------ Run | Yrd Mat Mat Min Zio Pro Used RIF Installer . | . . . . . . Robots Hacked . | . . . . . . Non-combat . | . . . . . . Combat . | . . . . . . Robot Hacks Applied . | . . . . . . Relay Couplers Released . | . . . . . . Fabnet Peak Effective % . | . . . . . . Robots Rewired . | . . . . . . Allies Hacked . | . . . . . . Hacks Repelled . | . . . . . . Allies | -11 -10 -9 -9 -7 -6 -------- Run | Yrd Mat Mat Min Zio Pro Total Allies 6 | . . . . 6 . Largest Group 6 | . . . . 6 2 Highest-Rated Group 349 | . . . . 349 192 Highest-Rated Ally 96 | . . . . 96 96 Total Orders . | . . . . . . Ally Attacks 15 | . . . . . 15 Total Damage 522 | . . . . . 522 Kills 1 | . . . . . 1 Allies Corrupted . | . . . . . . Allies Melted . | . . . . . . Intel | -11 -10 -9 -9 -7 -6 ------- Run | Yrd Mat Mat Min Zio Pro Robot Analysis Total . | . . . . . . Derelict Logs Recovered 3 | . . . . 2 1 Drone Launches . | . . . . . . Drone Recoveries . | . . . . . . Exploration | -11 -10 -9 -9 -7 -6 ------------- Run | Yrd Mat Mat Min Zio Pro Turns Passed 2151 | . 428 439 104 798 382 Spaces Moved 1892 | 1 339 237 101 804 410 Core 3 | . . 1 . . 2 Treads . | . . . . . . Legs 1 | 1 . . . . . Wheels 1888 | . 339 236 101 804 408 Hover . | . . . . . . Flight . | . . . . . . Fastest Speed 80 | 120 80 80 80 80 80 Average Speed 86 | 120 80 82 80 91 85 Slowest Speed 250 | 120 95 250 80 95 100 Overloaded Moves . | . . . . . . Propulsion Burnouts . | . . . . . . Robots Hopped . | . . . . . . Cave-ins Triggered . | . . . . . . Exploration Rate (%) 39 | 2 44 23 20 85 65 Regions Visited 5 Branch Regions 3 Pre-discovered Areas 1 | . . . . . 1 Known Exits Taken 4 | . 1 1 1 1 . Unknown Exits Taken 1 | 1 . . . . . Scrap Searched 7 | . . . . 4 3 Spaces Dug . | . . . . . . Terrain Destroyed 25 | . . 25 . . . Melee . | . . . . . . Projectile . | . . . . . . AOE 25 | . . 25 . . . Terrain Rammed . | . . . . . . Walls Destroyed . | . . . . . . Machines Disabled . | . . . . . . Actions | -11 -10 -9 -9 -7 -6 --------- Run | Yrd Mat Mat Min Zio Pro Total 2192 | . 410 367 120 863 432 Wait 124 | . 1 51 16 52 4 Move 1887 | . 338 236 100 803 410 Hop . | . . . . . . Pick Up 18 | . 6 4 1 3 4 Fast Attach 6 | . 2 3 . 1 . Attach 7 | . 1 3 . . 3 Detach . | . . . . . . Swap 14 | . 6 5 . 2 1 Drop 17 | . 6 5 . 2 4 Fire 119 | . 50 60 3 . 6 Melee . | . . . . . . Ram . | . . . . . . Kick . | . . . . . . Crush . | . . . . . . Escape Stasis . | . . . . . . Rewire . | . . . . . . Trap . | . . . . . . Miscellaneous . | . . . . . . Route ------- -11/Scrapyard -10/Materials -9/Materials (discovered 2 exits: *Min x2) -9/Mines (discovered 2 exits: *Mat / *Zio) -7/Zion (discovered 2 exits: Dee / *Pro) -6/Proximity Caves History --------- Turn | Location | Event 1 | -11/Scrapyard | Discovered new exit (range 0) 1 | -11/Scrapyard | Entered Materials 323 | -10/Materials | Build established: Mutant 419 | -10/Materials | Discovered new exit (range 10) 429 | -10/Materials | Identified exit to Materials 429 | -10/Materials | Entered another Materials area 429 | -9/Materials | Evolved 2 slots: Propulsion x2 437 | -9/Materials | Discovered new exit (range 14) 450 | -9/Materials | Identified exit to Mines 549 | -9/Materials | Repaired Broken Lgt. Assault Rifle 796 | -9/Materials | Discovered exit to Mines (range 14) 868 | -9/Materials | Entered Mines 891 | -9/Mines | Build established: Scavenger-Mutant 940 | -9/Mines | Met a Derelict bent on vengeance 956 | -9/Mines | Discovered new exit (range 13) 966 | -9/Mines | A Derelict revealed a hidden shortcut to a safe place 966 | -9/Mines | Identified exit to Materials 971 | -9/Mines | Identified exit to Zion 972 | -9/Mines | Entered Zion 994 | -7/Zion | Received a hallucinogenic algorithm 1018 | -7/Zion | System corruption cleaned by Quarantine Array 1130 | -7/Zion | Identified exit to Deep Caves 1189 | -7/Zion | Given A8's code to call for help 1196 | -7/Zion | Learned 4 Factory zone layouts 1242 | -7/Zion | Identified exit to Proximity Caves 1270 | -7/Zion | Found CR-A16's Pointy Stick 1441 | -7/Zion | Imprinted 1443 | -7/Zion | Declared Zion's savior 1542 | -7/Zion | Enhanced Grunt warped into view, answering call for help 1542 | -7/Zion | Enhanced Grunt warped into view, answering call for help 1770 | -7/Zion | Entered Proximity Caves 1770 | -6/Proximity Caves | Accompanied by 2 allies 2089 | -6/Proximity Caves | Spotted B-75 Beast 2118 | -6/Proximity Caves | Core integrity fell below 50% 2144 | -6/Proximity Caves | Core integrity fell below 20% 2152 | -6/Proximity Caves | Destroyed by B-75 Beast with Magnetic Acceleration Cannon Last Messages --------------- 01991_ Searching scrap... 01991_ Found Enh. Optical Array. 01991_ Found Hacking Suite. 01991_ Found 40 Matter. 01993_ Searching scrap... 01993_ Found Mak. Spear. 01993_ Found Xenon Bombardment Thruster. 01993_ Found 36 Matter. 01996_ Dropped Visual Processing Unit. 01996_ Acquired Enh. Optical Array. 02113_ Signal Interpreter destroyed. 02113_ Plasma Cannon destroyed. 02117_ Lgt. Treads destroyed. 02117_ Wheel destroyed. 02126_ Beam Rifle destroyed. 02143_ Wheel destroyed. 02149_ Dropped Self-destruct Interrupter. 02150_ Acquired Enh. Flamer. 02152_ Dropped Med. Storage Unit. 02152_ Acquired Imp. System Restoration Module. Map ----- +----------------------------------------------------+ | ???????????????????????????????# #????# ???? | | ???????????????????????????????# #???##### ???? | | ??????????????????????????????? #???????##????? | | ???????????????????????????????## #???????????#?? | | ????????????????????????????????# #??????????## | | ???????????????????????????????? #??????????# | | ???????????????????????????????? #????????????# | | ???????????????????????????????? #????????????## | | ???????????????????????????????? #?????????????# | | ???????????????????????????????? ## ?????????# | | ???????????????????????????????? #???????# | | ?????????????????????????????????? #???????# | | ?????????????????????????????????? #???????# | | ????????????????????????????????? ?????????# | | ??????????????????????????###???? ??????????? | | ?????????????????????????? #??# ???????????? | | ?????????????????????????? #?## #???????#??##? | | ????????????????????????## ### #??????? ### | | ???????????????????????? #??????? | | ???????????????????????? #????### ? | | ????????????????????????# ##??# ?? | | ?????????????????####??## #### #??? | | ?????????????????# ### # #### | | ??????????????????# # | | ???????????????????# | | ????????????????????# @! BB | | ????????????????????## % & ;;; BB ;#????# | | ?????????????????????# #;; ###??# | | ?????????????????????## ##?# | | ????????????????######### ### ### | | ???????????????## ##?# | | ?????????????### ##?# | | ????????????## # # ### ## % #?# ## | | ????????????# % ### ## #?# ### | | ????????????# # ## ## ## ##?? | | ????????????## ######; ### ### ##??? | | ?????????????## ##????## #?# ### ##???? | | ??????????????####??????## #?## ### ##????? | | ?????????????????????????###??# ### #?????? | | ??????????????????????????????## ##?###?????? | | ???????????????????????????????########??????????? | | ?????????????????????????????????????????????????? | | ?????????????????????????????????????????????????? | | ?????????????????????????????????????????????????? | | ?????????????????????????????????????????????????? | | ?????????????????????????????????????????????????? | | ?????????????????????????????????????????????????? | | ?????????????????????????????????????????????????? | | ?????????????????????????????????????????????????? | | ?????????????????????????????????????????????????? | +----------------------------------------------------+ Best States ------------- Heat Dissipation 42 Energy Generation 12 Energy Capacity 265 Matter Stores 300 Matter Capacity 300 Sight Range 22 Terrain Scan Density 10 Evasion (%) 44 Recoil Reduction 1 Item Schematics ----------------- None Robot Schematics ------------------ None Fabricated ------------ Nothing Alien Tech Used ----------------- None Achievements -------------- None Challenges ------------ None Game ------ Seed RelayDimensionalPendant Manual? 0 Play Time 00:24:44 Cumulative 192.4 hours Start 2024.05.25 @ 12:15:02 End 2024.05.25 @ 12:41:50 Sessions 1 Manual Loads 0 Difficulty Rogue Special Mode None Game No. 353 Rogue 353 Adventurer 0 Explorer 0 Win Type - Total 0 Types 0/0/0/0/0/0/0/0/0 Lore% 44 Gallery% 55 Achievement% 39 Wizard Run 0 Options --------- Layout 1 ASCII 0 Keyboard 0 Movement Mouse Keybinds 0 Fullscreen 1 Font 24/Smallcaps Map View 50x40 Zoom Use 0% Tactical HUD 1 Map Filters NONE Filters NONE Steam 1 RUN: eee84abe-d896-4aff-8333-8ca86ab2c28e